fUSD/lending_fUSD_20260510
["ID","MTS","AMOUNT","RATE_DAILY","PERIOD"]
[421957744,1778371843000,-481.01,0.000364,14]
[421957757,1778371843000,-173.55,0.00037507,13]
[421957729,1778371843000,-151.0,0.00035779,7]
[421957728,1778371843000,-500.0,0.00035779,7]
[421957792,1778371843000,-527.1999469,0.00037591,2]
[421957730,1778371843000,-521.59780311,0.00035779,7]
[421957731,1778371843000,-151.0,0.00035779,7]
[421957734,1778371843000,-269.02616168,0.00035781,2]
[421957735,1778371843000,-153.73631246,0.00035781,7]
[421957733,1778371843000,-500.0,0.0003578,7]
[421957732,1778371843000,-165.59967503,0.00035779,7]
[421957737,1778371843000,-1535.0,0.00035781,7]
[421957738,1778371843000,-412.0,0.00035871,2]
[421957741,1778371843000,-807.34,0.000359,7]
[421957736,1778371843000,-1537.0,0.00035781,7]
[421957754,1778371843000,-1000.0,0.000374,7]
[421957740,1778371843000,-195.0,0.00035895,30]
[421957742,1778371843000,-150.0,0.00035981,2]
[421957743,1778371843000,-166.67,0.00036008,2]
[421957747,1778371843000,-155.23260453,0.00036629,2]
[421957752,1778371843000,-824.36,0.00037135,120]
[421957749,1778371843000,-210.87,0.00036777,120]
[421957748,1778371843000,-152.0,0.00036718,2]
[421957745,1778371843000,-503.0,0.00036485,14]
[421957751,1778371843000,-195.0,0.00036895,30]
[421957746,1778371843000,-1091.0,0.000365,7]
[421957750,1778371843000,-158.0,0.00036894,30]
[421957753,1778371843000,-2240.0,0.00037278,30]
[421957755,1778371843000,-2222.75690501,0.0003742,120]
[421957765,1778371843000,-170.23,0.00037507,13]
[421957739,1778371843000,-158.0,0.00035894,30]
[421957796,1778371843000,-725.31429466,0.00037591,2]
[421957727,1778371843000,-151.0,0.00035779,7]
[421957786,1778371843000,-300.0,0.00037591,2]
[421957824,1778371843000,-300.0,0.00037591,2]
[421957819,1778371843000,-1065.80891604,0.00037591,2]
[421957827,1778371843000,-853.29787159,0.00037591,2]
[421957829,1778371843000,-526.35006308,0.00037591,2]
[421957826,1778371843000,-369.74861073,0.00037591,2]
[421957831,1778371843000,-309.26886467,0.00037591,2]
[421957830,1778371843000,-1145.98254531,0.00037591,2]
[421957841,1778371843000,-492.17769921,0.00037591,2]
[421957835,1778371843000,-451.4433371,0.00037591,2]
[421957836,1778371843000,-483.58541473,0.00037591,2]
[421957844,1778371843000,-1065.80891604,0.00037591,2]
[421957842,1778371843000,-603.8329142,0.00037591,2]
[421957843,1778371843000,-702.9332627,0.00037591,2]
[421957839,1778371843000,-1093.57565763,0.00037591,2]
[421957832,1778371843000,-863.54795654,0.00037591,2]
[421957834,1778371843000,-384.38279486,0.00037591,2]
[421957837,1778371843000,-309.51003375,0.00037591,2]
[421957833,1778371843000,-668.31699651,0.00037591,2]
[421957840,1778371843000,-301.03431884,0.00037591,2]
[421957838,1778371843000,-590.316086,0.00037591,2]
[421957845,1778371843000,-399.46100559,0.00037591,2]
[421957849,1778371843000,-300.0,0.00037591,2]
[421957851,1778371843000,-369.74861073,0.00037591,2]
[421957848,1778371843000,-892.47111794,0.00037591,2]
[421957853,1778371843000,-526.35006308,0.00037591,2]
[421957846,1778371843000,-725.31429465,0.00037591,2]
[421957847,1778371843000,-301.48155124,0.00037591,2]
[421957850,1778371843000,-400.34405546,0.00037591,2]
[421957788,1778371843000,-300.0,0.00037591,2]
[421957828,1778371843000,-1196.29815184,0.00037591,2]
[421957825,1778371843000,-300.25804147,0.00037591,2]
[421957852,1778371843000,-790.17323,0.00037591,2]
[421957823,1778371843000,-301.48155124,0.00037591,2]
[421957793,1778371843000,-1065.80891604,0.00037591,2]
[421957781,1778371843000,-384.38279486,0.00037591,2]
[421957803,1778371843000,-526.35006308,0.00037591,2]
[421957797,1778371843000,-301.48155124,0.00037591,2]
[421957799,1778371843000,-300.0,0.00037591,2]
[421957804,1778371843000,-1145.98254531,0.00037591,2]
[421957801,1778371843000,-1794.44722741,0.00037591,2]
[421957784,1778371843000,-483.58541473,0.00037591,2]
[421957822,1778371843000,-725.31429466,0.00037591,2]
[421957795,1778371843000,-399.46100559,0.00037591,2]
[421957802,1778371843000,-343.62395792,0.00037591,2]
[421957783,1778371843000,-300.0,0.00037591,2]
[421957798,1778371843000,-300.25804147,0.00037591,2]
[421957805,1778371843000,-309.26886467,0.00037591,2]
[421957794,1778371843000,-892.47111794,0.00037591,2]
[421957807,1778371843000,-310.57459591,0.00037591,2]
[421957821,1778371843000,-399.46100559,0.00037591,2]
[421957806,1778371843000,-863.54795654,0.00037591,2]
[421957818,1778371843000,-527.1999469,0.00037591,2]
[421957820,1778371843000,-892.47111794,0.00037591,2]
[421957813,1778371843000,-309.51003376,0.00037591,2]
[421957812,1778371843000,-483.58541473,0.00037591,2]
[421957815,1778371843000,-1093.57565763,0.00037591,2]
[421957816,1778371843000,-492.17769921,0.00037591,2]
[421957817,1778371843000,-603.8329142,0.00037591,2]
[421957808,1778371843000,-463.36822182,0.00037591,2]
[421957810,1778371843000,-451.4433371,0.00037591,2]
[421957809,1778371843000,-384.38279486,0.00037591,2]
[421957814,1778371843000,-300.0,0.00037591,2]
[421957811,1778371843000,-306.05504662,0.00037591,2]
[421957889,1778371844000,-173.55,0.00038055,13]
[421957898,1778371844000,-157.2384,0.00038351,2]
[421957896,1778371844000,-1912.0,0.000383,7]
[421957892,1778371844000,-186.97,0.00038055,13]
[421957893,1778371844000,-186.97,0.00038055,13]
[421957886,1778371844000,-5118.0,0.00038,30]
[421957894,1778371844000,-1179.71,0.0003824,7]
[421957890,1778371844000,-173.54,0.00038055,13]
[421957888,1778371844000,-173.55,0.00038055,13]
[421957887,1778371844000,-173.55,0.00038055,13]
[421957884,1778371844000,-150.0,0.0003778,2]
[421957891,1778371844000,-186.97,0.00038055,13]
[421957899,1778371844000,-847.0,0.00038356,30]
[421957914,1778371844000,-2246.2636,0.00038671,2]
[421957907,1778371844000,-173.55,0.00038603,13]
[421957906,1778371844000,-173.55,0.00038603,13]
[421957901,1778371844000,-540.31378598,0.00038411,2]
[421957900,1778371844000,-540.31378598,0.00038372,2]
[421957903,1778371844000,-861.672,0.00038525,52]
[421957902,1778371844000,-540.31378598,0.00038439,2]
[421957908,1778371844000,-173.54,0.00038603,13]
[421957904,1778371844000,-540.31378598,0.00038531,2]
[421957905,1778371844000,-173.55,0.00038603,13]
[421957910,1778371844000,-186.97,0.00038603,13]
[421957920,1778371844000,-239.0,0.00039,2]
[421957909,1778371844000,-186.97,0.00038603,13]
[421957895,1778371844000,-288.17,0.00038276,60]
[421957897,1778371844000,-2246.2636,0.00038351,2]
[421957885,1778371844000,-481.01,0.000379,14]
[421957867,1778371844000,-301.48155124,0.00037591,2]
[421957880,1778371844000,-598.14907592,0.00037628,2]
[421957911,1778371844000,-186.97,0.00038603,13]
[421957856,1778371844000,-1151.39727548,0.00037591,2]
[421957854,1778371844000,-381.99418183,0.00037591,2]
[421957855,1778371844000,-309.26886467,0.00037591,2]
[421957857,1778371844000,-617.82429601,0.00037591,2]
[421957859,1778371844000,-451.4433371,0.00037591,2]
[421957870,1778371844000,-310.57459591,0.00037591,2]
[421957869,1778371844000,-309.26886467,0.00037591,2]
[421957864,1778371844000,-355.26963892,0.00037591,2]
[421957861,1778371844000,-412.68004503,0.00037591,2]
[421957860,1778371844000,-483.58541473,0.00037591,2]
[421957858,1778371844000,-384.38279486,0.00037591,2]
[421957862,1778371844000,-1092.99252519,0.00037591,2]
[421957878,1778371844000,-414.0994615,0.00037591,2]
[421957863,1778371844000,-805.1105525,0.00037591,2]
[421957868,1778371844000,-369.74861073,0.00037591,2]
[421957866,1778371844000,-399.46100558,0.00037591,2]
[421957875,1778371844000,-317.1341678,0.00037591,2]
[421957874,1778371844000,-1189.96149077,0.00037591,2]
[421957871,1778371844000,-384.38279486,0.00037591,2]
[421957876,1778371844000,-1794.44722741,0.00037591,2]
[421957881,1778371844000,-2358.70779282,0.00037676,2]
[421957873,1778371844000,-365.10835165,0.00037591,2]
[421957877,1778371844000,-412.35848644,0.00037591,2]
[421957872,1778371844000,-601.92444948,0.00037591,2]
[421957882,1778371844000,-503.0,0.00037694,15]
[421957879,1778371844000,-576.5741924,0.00037591,2]
[421957883,1778371844000,-1257.28220219,0.00037753,120]
[421957865,1778371844000,-892.47111794,0.00037591,2]
[421957915,1778371844000,-311.02471787,0.00038793,60]
[421957917,1778371844000,-461.9,0.00038954,2]
[421957913,1778371844000,-11254.45279796,0.00038662,2]
[421957958,1778371844000,-586.14777,0.0004,4]
[421957952,1778371844000,-173.55,0.00039973,13]
[421957950,1778371844000,-2246.2636,0.00039949,2]
[421957951,1778371844000,-173.55,0.00039973,13]
[421957953,1778371844000,-173.55,0.00039973,13]
[421957955,1778371844000,-186.97,0.00039973,13]
[421957954,1778371844000,-173.54,0.00039973,13]
[421957956,1778371844000,-186.97,0.00039973,13]
[421957957,1778371844000,-186.97,0.00039973,13]
[421957960,1778371844000,-7560.87,0.0004,120]
[421957962,1778371844000,-238.0,0.0004,30]
[421957959,1778371844000,-1000.0,0.0004,90]
[421957970,1778371844000,-1000.0,0.0004015,90]
[421957949,1778371844000,-151.75,0.00039946,120]
[421957961,1778371844000,-186.0,0.0004,120]
[421957963,1778371844000,-153.0,0.0004,120]
[421957965,1778371844000,-18713.25614651,0.0004,30]
[421957964,1778371844000,-4656.12345679,0.0004,5]
[421957966,1778371844000,-2009.04957785,0.0004,120]
[421957968,1778371844000,-503.0,0.00040111,18]
[421957969,1778371844000,-151.75,0.00040146,120]
[421957971,1778371844000,-807.34,0.000402,7]
[421957973,1778371844000,-500.0,0.00040245,21]
[421957974,1778371844000,-1100.0,0.00040245,21]
[421957972,1778371844000,-500.0,0.00040245,21]
[421957912,1778371844000,-183.2417995,0.00038662,2]
[421957977,1778371844000,-2246.2638,0.00040269,2]
[421957976,1778371844000,-1000.0,0.0004025,90]
[421957967,1778371844000,-151.75,0.00040046,120]
[421957948,1778371844000,-5367.87855,0.00039899,30]
[421957975,1778371844000,-151.75,0.00040246,120]
[421957942,1778371844000,-151.75,0.00039746,120]
[421957947,1778371844000,-229.80394357,0.0003989,2]
[421957916,1778371844000,-503.0,0.00038902,17]
[421957919,1778371844000,-2246.2636,0.00038991,2]
[421957921,1778371844000,-540.31378598,0.00039027,2]
[421957923,1778371844000,-191.09,0.0003912,120]
[421957924,1778371844000,-151.75,0.00039146,120]
[421957922,1778371844000,-151.75,0.00039046,120]
[421957926,1778371844000,-247.94917606,0.00039167,2]
[421957925,1778371844000,-540.31378598,0.00039155,2]
[421957929,1778371844000,-151.75,0.00039346,120]
[421957933,1778371844000,-540.31378598,0.00039554,2]
[421957932,1778371844000,-151.75,0.00039546,120]
[421957927,1778371844000,-151.75,0.00039246,120]
[421957931,1778371844000,-631.0,0.000395,70]
[421957918,1778371844000,-540.31378598,0.00038958,2]
[421957930,1778371844000,-151.75,0.00039446,120]
[421957928,1778371844000,-2246.2636,0.0003931,2]
[421957938,1778371844000,-200.73429929,0.0003961,30]
[421957939,1778371844000,-2246.2636,0.0003963,2]
[421957941,1778371844000,-150.0,0.00039669,2]
[421957937,1778371844000,-200.73429929,0.0003961,30]
[421957944,1778371844000,-930.0,0.00039766,5]
[421957940,1778371844000,-151.75,0.00039646,120]
[421957934,1778371844000,-336.98284542,0.000396,30]
[421957936,1778371844000,-200.73429931,0.0003961,30]
[421957945,1778371844000,-151.75,0.00039846,120]
[421957946,1778371844000,-540.31378598,0.00039884,2]
[421957935,1778371844000,-336.9828454,0.000396,30]
[421957943,1778371844000,-712.0,0.00039766,5]
[421958039,1778371845000,-1000.0,0.0004075,90]
[421958034,1778371845000,-540.31378598,0.00040623,2]
[421958046,1778371845000,-250.0,0.00040815,2]
[421958045,1778371845000,-211.77253688,0.00040789,13]
[421958032,1778371845000,-1697.35888146,0.00040602,2]
[421958052,1778371845000,-250.0,0.00040815,2]
[421958029,1778371845000,-152.0,0.00040536,7]
[421958033,1778371845000,-162.5925,0.00040616,2]
[421958027,1778371845000,-162.5925,0.00040516,2]
[421958037,1778371845000,-150.45,0.0004069,120]
[421958035,1778371845000,-540.31378598,0.0004063,2]
[421958030,1778371845000,-944.901331,0.00040591,106]
[421958043,1778371845000,-211.77253688,0.00040789,13]
[421958038,1778371845000,-162.5925,0.00040716,2]
[421958042,1778371845000,-211.77253688,0.00040789,13]
[421958044,1778371845000,-211.77253688,0.00040789,13]
[421958041,1778371845000,-211.77253692,0.00040789,13]
[421958047,1778371845000,-250.0,0.00040815,2]
[421958057,1778371845000,-393.0,0.00040826,120]
[421958053,1778371845000,-354.0,0.00040815,2]
[421958055,1778371845000,-500.0,0.00040826,120]
[421958049,1778371845000,-250.0,0.00040815,2]
[421958054,1778371845000,-162.5925,0.00040816,2]
[421958050,1778371845000,-250.0,0.00040815,2]
[421958024,1778371845000,-1000.0,0.000405,90]
[421958040,1778371845000,-2114.84,0.0004075,120]
[421958021,1778371845000,-36134.32,0.00040493,60]
[421957996,1778371845000,-151.75,0.00040346,120]
[421958018,1778371845000,-50000.0,0.00040493,60]
[421957983,1778371845000,-300.0,0.00040279,2]
[421957985,1778371845000,-300.0,0.00040279,2]
[421957978,1778371845000,-300.0,0.00040279,2]
[421957981,1778371845000,-300.0,0.00040279,2]
[421957980,1778371845000,-300.0,0.00040279,2]
[421957998,1778371845000,-151.795,0.00040446,120]
[421958000,1778371845000,-1082.9358482,0.00040484,2]
[421957999,1778371845000,-281.36843669,0.00040483,10]
[421958001,1778371845000,-111142.1620888,0.00040484,2]
[421957987,1778371845000,-300.0,0.00040279,2]
[421957991,1778371845000,-300.0,0.00040279,2]
[421957995,1778371845000,-1091.77,0.0004029,60]
[421957989,1778371845000,-300.0,0.00040279,2]
[421957997,1778371845000,-162.5925,0.00040416,2]
[421957993,1778371845000,-420.59,0.00040279,2]
[421957994,1778371845000,-429.96,0.0004029,60]
[421958003,1778371845000,-28951.037105,0.00040484,2]
[421958004,1778371845000,-5886.1936009,0.00040484,2]
[421958006,1778371845000,-254.929028,0.00040484,7]
[421958002,1778371845000,-1520.261876,0.00040484,2]
[421958014,1778371845000,-151.0,0.00040484,30]
[421958015,1778371845000,-151.0,0.00040484,30]
[421958008,1778371845000,-254.929028,0.00040484,7]
[421958012,1778371845000,-254.929028,0.00040484,7]
[421958016,1778371845000,-500.03562014,0.0004049,2]
[421958010,1778371845000,-254.929028,0.00040484,7]
[421958051,1778371845000,-250.0,0.00040815,2]
[421958031,1778371845000,-186.0,0.000406,120]
[421958048,1778371845000,-250.0,0.00040815,2]
[421958082,1778371845000,-1301.68127,0.00041096,14]
[421958092,1778371845000,-424.823195,0.00041096,120]
[421958094,1778371845000,-424.823195,0.00041096,120]
[421958086,1778371845000,-1301.68127,0.00041096,14]
[421958095,1778371845000,-424.823195,0.00041096,120]
[421958089,1778371845000,-424.823195,0.00041096,120]
[421958087,1778371845000,-1301.68127,0.00041096,14]
[421958097,1778371845000,-424.823195,0.00041096,120]
[421958099,1778371845000,-151.0,0.00041096,120]
[421958102,1778371845000,-151.0,0.00041096,120]
[421958098,1778371845000,-151.0,0.00041096,120]
[421958100,1778371845000,-151.0,0.00041096,120]
[421958088,1778371845000,-424.823195,0.00041096,120]
[421958101,1778371845000,-151.0,0.00041096,120]
[421958104,1778371845000,-1585.315,0.00041096,120]
[421958105,1778371845000,-161.22,0.00041096,120]
[421958108,1778371845000,-150.0,0.00041135,10]
[421958107,1778371845000,-186.0,0.000411,120]
[421958109,1778371845000,-150.0,0.00041135,10]
[421958103,1778371845000,-151.0,0.00041096,120]
[421958115,1778371845000,-164.68,0.000412,30]
[421958111,1778371845000,-150.0,0.00041135,10]
[421958112,1778371845000,-150.0,0.00041135,10]
[421958113,1778371845000,-199.0,0.00041135,10]
[421958114,1778371845000,-481.01,0.000412,14]
[421958110,1778371845000,-150.0,0.00041135,10]
[421958106,1778371845000,-222.73,0.00041096,120]
[421958091,1778371845000,-1301.68127,0.00041096,14]
[421958056,1778371845000,-500.0,0.00040826,120]
[421958090,1778371845000,-1301.68127,0.00041096,14]
[421958093,1778371845000,-424.823195,0.00041096,120]
[421958059,1778371845000,-162.5925,0.00040916,2]
[421958069,1778371845000,-1100.0,0.00041067,21]
[421958061,1778371845000,-256942.0,0.0004095,60]
[421958058,1778371845000,-150.0,0.00040887,2]
[421958060,1778371845000,-151.0,0.00040947,14]
[421958062,1778371845000,-281.0,0.00040952,120]
[421958068,1778371845000,-500.0,0.00041067,21]
[421958064,1778371845000,-1000.0,0.00041,90]
[421958065,1778371845000,-238.0,0.00041,30]
[421958063,1778371845000,-216.18,0.00040989,120]
[421958067,1778371845000,-350.0,0.0004105,2]
[421958076,1778371845000,-200.0,0.00041096,120]
[421958066,1778371845000,-431.23801384,0.0004102,120]
[421958071,1778371845000,-500.0,0.00041095,2]
[421958096,1778371845000,-424.823195,0.00041096,120]
[421958072,1778371845000,-500.0,0.00041095,2]
[421958084,1778371845000,-1301.68127,0.00041096,14]
[421958078,1778371845000,-151.0,0.00041096,120]
[421958079,1778371845000,-151.0,0.00041096,120]
[421958075,1778371845000,-500.0,0.00041095,2]
[421958073,1778371845000,-500.0,0.00041095,2]
[421958081,1778371845000,-1301.68127,0.00041096,14]
[421958074,1778371845000,-500.0,0.00041095,2]
[421958077,1778371845000,-326.0,0.00041096,120]
[421958070,1778371845000,-500.0,0.00041095,2]
[421958080,1778371845000,-1301.68127,0.00041096,14]
[421958156,1778371846000,-151.0,0.00041783,120]
[421958150,1778371846000,-150.45,0.0004173,120]
[421958155,1778371846000,-151.0,0.00041783,120]
[421958148,1778371846000,-200.0,0.00041706,120]
[421958149,1778371846000,-250.0,0.00041726,107]
[421958154,1778371846000,-35933.62,0.00041778,60]
[421958147,1778371846000,-381.919504,0.000417,10]
[421958153,1778371846000,-400.0,0.0004177,3]
[421958151,1778371846000,-2200.28,0.0004175,120]
[421958152,1778371846000,-250.0,0.00041765,110]
[421958158,1778371846000,-151.0,0.00041783,120]
[421958157,1778371846000,-151.0,0.00041783,120]
[421958177,1778371846000,-257.12824384,0.00041788,3]
[421958162,1778371846000,-250.0,0.00041783,120]
[421958159,1778371846000,-151.0,0.00041783,120]
[421958170,1778371846000,-162.0,0.00041788,120]
[421958161,1778371846000,-250.0,0.00041783,120]
[421958168,1778371846000,-168.378411,0.00041787,120]
[421958164,1778371846000,-151.0,0.00041785,14]
[421958169,1778371846000,-158.0,0.00041788,120]
[421958165,1778371846000,-300.0,0.00041786,120]
[421958166,1778371846000,-300.0,0.00041786,120]
[421958167,1778371846000,-274.0,0.00041786,120]
[421958171,1778371846000,-155.0,0.00041788,120]
[421958139,1778371846000,-447.31812475,0.00041683,120]
[421958160,1778371846000,-249.133894,0.00041783,120]
[421958145,1778371846000,-186.0,0.000417,120]
[421958134,1778371846000,-339.2162758,0.00041639,2]
[421958142,1778371846000,-206.6,0.00041694,120]
[421958121,1778371846000,-503.0,0.0004132,19]
[421958119,1778371846000,-431.23801382,0.000413,120]
[421958122,1778371846000,-6442.33067543,0.00041325,5]
[421958120,1778371846000,-153.0,0.000413,120]
[421958116,1778371846000,-150.45,0.0004121,120]
[421958118,1778371846000,-2157.13,0.0004125,120]
[421958117,1778371846000,-210.87,0.00041215,120]
[421958132,1778371846000,-241.6356492,0.00041639,2]
[421958126,1778371846000,-5000.0,0.00041325,6]
[421958125,1778371846000,-5000.0,0.00041325,5]
[421958127,1778371846000,-807.34,0.000414,7]
[421958123,1778371846000,-5000.0,0.00041325,6]
[421958130,1778371846000,-1792.87,0.00041491,2]
[421958133,1778371846000,-24799.1684261,0.00041639,2]
[421958124,1778371846000,-5000.0,0.00041325,3]
[421958173,1778371846000,-156.0,0.00041788,120]
[421958129,1778371846000,-5000.0,0.00041483,30]
[421958131,1778371846000,-431.23801382,0.0004158,120]
[421958128,1778371846000,-371.91439,0.0004144,120]
[421958144,1778371846000,-373.23,0.00041695,120]
[421958143,1778371846000,-162.27,0.00041695,120]
[421958146,1778371846000,-454.68,0.000417,14]
[421958137,1778371846000,-150.0,0.00041652,120]
[421958140,1778371846000,-155.23260453,0.00041687,4]
[421958138,1778371846000,-834648.17597744,0.00041672,120]
[421958136,1778371846000,-1313.3873208,0.00041639,2]
[421958135,1778371846000,-6459.8495457,0.00041639,2]
[421958141,1778371846000,-2358.70779282,0.00041689,28]
[421958182,1778371846000,-1301.68127,0.00041789,14]
[421958163,1778371846000,-157.0,0.00041783,120]
[421958174,1778371846000,-156.0,0.00041788,120]
[421958209,1778371846000,-254.929028,0.00041789,7]
[421958220,1778371846000,-254.929019,0.00041789,7]
[421958211,1778371846000,-254.929028,0.00041789,7]
[421958219,1778371846000,-254.929028,0.00041789,7]
[421958208,1778371846000,-254.929028,0.00041789,7]
[421958210,1778371846000,-500.0,0.00041789,3]
[421958217,1778371846000,-254.929028,0.00041789,7]
[421958213,1778371846000,-254.929028,0.00041789,7]
[421958216,1778371846000,-254.929028,0.00041789,7]
[421958212,1778371846000,-254.929028,0.00041789,7]
[421958215,1778371846000,-254.929028,0.00041789,7]
[421958214,1778371846000,-254.929028,0.00041789,7]
[421958205,1778371846000,-151.0,0.00041789,120]
[421958218,1778371846000,-254.929028,0.00041789,7]
[421958234,1778371846000,-157.0,0.00041789,120]
[421958232,1778371846000,-151.0,0.00041789,120]
[421958221,1778371846000,-152.425741,0.00041789,30]
[421958236,1778371846000,-162.0,0.00041789,120]
[421958230,1778371846000,-151.0,0.00041789,120]
[421958238,1778371846000,-172.0,0.00041789,120]
[421958172,1778371846000,-161.0,0.00041788,120]
[421958228,1778371846000,-151.0,0.00041789,120]
[421958241,1778371846000,-195.0,0.00041789,120]
[421958224,1778371846000,-151.0,0.00041789,120]
[421958243,1778371846000,-241.29213992,0.00041789,120]
[421958245,1778371846000,-254652.48621661,0.00041789,30]
[421958222,1778371846000,-151.0,0.00041789,120]
[421958201,1778371846000,-424.823195,0.00041789,120]
[421958226,1778371846000,-151.0,0.00041789,120]
[421958207,1778371846000,-200.645279,0.00041789,120]
[421958204,1778371846000,-234.2769463,0.00041789,3]
[421958176,1778371846000,-385.69236576,0.00041788,3]
[421958180,1778371846000,-1301.68127,0.00041789,14]
[421958179,1778371846000,-1301.68127,0.00041789,14]
[421958181,1778371846000,-1301.68127,0.00041789,14]
[421958178,1778371846000,-270.88517872,0.00041789,2]
[421958184,1778371846000,-1301.68127,0.00041789,14]
[421958194,1778371846000,-424.823195,0.00041789,120]
[421958183,1778371846000,-1301.68127,0.00041789,14]
[421958185,1778371846000,-1301.68127,0.00041789,14]
[421958186,1778371846000,-1301.68127,0.00041789,14]
[421958187,1778371846000,-1301.68127,0.00041789,14]
[421958188,1778371846000,-424.823195,0.00041789,120]
[421958175,1778371846000,-155.0,0.00041788,120]
[421958189,1778371846000,-424.823195,0.00041789,120]
[421958190,1778371846000,-1301.68127,0.00041789,14]
[421958206,1778371846000,-151.0,0.00041789,120]
[421958202,1778371846000,-424.823199,0.00041789,120]
[421958200,1778371846000,-424.823195,0.00041789,120]
[421958196,1778371846000,-424.823195,0.00041789,120]
[421958198,1778371846000,-424.823195,0.00041789,120]
[421958197,1778371846000,-424.823195,0.00041789,120]
[421958199,1778371846000,-424.823195,0.00041789,120]
[421958195,1778371846000,-424.823195,0.00041789,120]
[421958193,1778371846000,-1301.68127,0.00041789,14]
[421958192,1778371846000,-1301.68127,0.00041789,14]
[421958191,1778371846000,-424.823195,0.00041789,120]
[421958203,1778371846000,-351.41541946,0.00041789,3]
[421958259,1778371847000,-420.35104813,0.00041789,30]
[421958260,1778371847000,-991.66185078,0.00041789,30]
[421958263,1778371847000,-151.0,0.00041789,120]
[421958265,1778371847000,-3377.51859313,0.00041789,30]
[421958274,1778371847000,-214.73073128,0.00034513,2]
[421958280,1778371847000,-435.7754455,0.00037591,2]
[421958281,1778371847000,-237.02156934,0.000396,30]
[421958282,1778371847000,-2734.13806942,0.00040474,10]
[421958285,1778371847000,-151.0,0.00041096,120]
[421958283,1778371847000,-1234.52193058,0.00040474,10]
[421958276,1778371847000,-99.96127606,0.000396,30]
[421958286,1778371847000,-151.0,0.00041096,120]
[421958284,1778371847000,-151.0,0.00041096,120]
[421958293,1778371847000,-168.378411,0.00041789,120]
[421958291,1778371847000,-151.0,0.00041789,120]
[421958295,1778371847000,-1780.82842397,0.00041789,120]
[421958292,1778371847000,-151.0,0.00041789,120]
[421958289,1778371847000,-151.0,0.00041096,120]
[421958290,1778371847000,-151.0,0.00041789,120]
[421958296,1778371847000,-68660.0633668,0.00041789,30]
[421958288,1778371847000,-151.0,0.00041096,120]
[421958294,1778371847000,-212.070272,0.00041789,120]
[421958287,1778371847000,-151.0,0.00041096,120]
[421958297,1778371861000,621.47975319,0.0002095,120]
[421958298,1778371862000,2500.0,0.0002095,120]
[421958300,1778371864000,400.199,0.0002095,120]
[421958299,1778371864000,500.0,0.00011659,120]
[421958307,1778372370000,343.51975323,0.0001,2]
[421958308,1778372391000,1000.0,0.00027397,120]
[421958313,1778372598000,2000.0,9.869e-05,2]
[421958315,1778372627000,692.28,9.849e-05,2]
[421958316,1778372661000,2619.54,9.911e-05,2]
[421958317,1778372676000,207.75,9.866e-05,2]
[421958318,1778372704000,150.0,9.518e-05,2]
[421958321,1778372705000,150.0,9.782e-05,2]
[421958320,1778372705000,150.0,9.65e-05,2]
[421958319,1778372705000,150.0,9.518e-05,2]
[421958322,1778372705000,150.0,9.914e-05,2]
[421958323,1778372708000,150.0,9.518e-05,2]
[421958326,1778372710000,150.0,9.729e-05,2]
[421958325,1778372710000,150.0,9.518e-05,2]
[421958324,1778372710000,150.0,9.518e-05,2]
[421958327,1778372710000,150.0,9.941e-05,2]
[421958328,1778372712000,150.0,9.518e-05,2]
[421958329,1778372715000,150.0,9.518e-05,2]
[421958330,1778372715000,150.0,9.782e-05,2]